[Event "Early-Titled-Tuesday-Blitz-April-23-2024"]
[Site "Chess.com"]
[Date "2024.04.23"]
[Round "2"]
[White "Matibar"]
[Black "maximnovik"]
[Result "1-0"]
[WhiteElo "2846"]
[BlackElo "2576"]
[TimeControl "180+1"]
[EndTime "8:18:18 PDT"]
[Termination "Matibar won on time"]

1. Nf3 {[%clk 0:02:59.8]} 1... Nf6 {[%clk 0:02:56.8]} 2. c4 {[%clk 0:02:59.6]}
2... c5 {[%clk 0:02:55.2]} 3. Nc3 {[%clk 0:02:56.5]} 3... b6 {[%clk 0:02:54.6]}
4. d4 {[%clk 0:02:56.1]} 4... cxd4 {[%clk 0:02:53.3]} 5. Nxd4 {[%clk 0:02:54.4]}
5... Bb7 {[%clk 0:02:53.6]} 6. Bg5 {[%clk 0:02:54.2]} 6... a6 {[%clk 0:02:48.4]}
7. e3 {[%clk 0:02:47.6]} 7... e6 {[%clk 0:02:45.3]} 8. Be2 {[%clk 0:02:40.1]}
8... Bxg2 {[%clk 0:02:38.8]} 9. Rg1 {[%clk 0:02:40.2]} 9... Bb7 {[%clk
0:02:37.6]} 10. Qc2 {[%clk 0:02:34.6]} 10... d6 {[%clk 0:02:34.8]} 11. O-O-O
{[%clk 0:02:34.3]} 11... Nbd7 {[%clk 0:02:34.5]} 12. f4 {[%clk 0:02:33.6]} 12...
Be7 {[%clk 0:02:32.3]} 13. e4 {[%clk 0:02:32.1]} 13... Qc7 {[%clk 0:02:25.4]}
14. Kb1 {[%clk 0:02:24.8]} 14... Rc8 {[%clk 0:02:24.5]} 15. f5 {[%clk
0:02:04.8]} 15... e5 {[%clk 0:02:20.6]} 16. Nf3 {[%clk 0:02:03.2]} 16... b5
{[%clk 0:02:07.8]} 17. Nd2 {[%clk 0:01:59.2]} 17... bxc4 {[%clk 0:01:29.6]} 18.
Nxc4 {[%clk 0:01:56]} 18... Nb6 {[%clk 0:01:21.6]} 19. Bxf6 {[%clk 0:01:47.2]}
19... gxf6 {[%clk 0:01:10]} 20. Nxb6 {[%clk 0:01:46.3]} 20... Qxb6 {[%clk
0:01:09.9]} 21. Rg3 {[%clk 0:01:35.5]} 21... d5 {[%clk 0:01:00.8]} 22. Qa4+
{[%clk 0:01:20.8]} 22... Kf8 {[%clk 0:00:37.1]} 23. Nxd5 {[%clk 0:01:18.2]}
23... Bxd5 {[%clk 0:00:35]} 24. exd5 {[%clk 0:01:19.1]} 24... Bd6 {[%clk
0:00:29.3]} 25. Qxa6 {[%clk 0:01:14.7]} 25... Qxa6 {[%clk 0:00:27.6]} 26. Bxa6
{[%clk 0:01:14.2]} 26... Rb8 {[%clk 0:00:25.9]} 27. a4 {[%clk 0:01:09.3]} 27...
Ke7 {[%clk 0:00:26]} 28. Bb5 {[%clk 0:01:09.1]} 28... h5 {[%clk 0:00:25.5]} 29.
Rc3 {[%clk 0:01:07.1]} 29... h4 {[%clk 0:00:25.4]} 30. h3 {[%clk 0:01:07.3]}
30... Rh5 {[%clk 0:00:24.9]} 31. Rf1 {[%clk 0:01:03.5]} 31... Rg5 {[%clk
0:00:24.3]} 32. Rb3 {[%clk 0:00:54.1]} 32... Rg3 {[%clk 0:00:23.8]} 33. Ka2
{[%clk 0:00:52.5]} 33... Bc5 {[%clk 0:00:18.8]} 34. Re1 {[%clk 0:00:45.5]} 34...
Kd6 {[%clk 0:00:18.9]} 35. Re4 {[%clk 0:00:45.2]} 35... Rh8 {[%clk 0:00:13.6]}
36. a5 {[%clk 0:00:43]} 36... Rxb3 {[%clk 0:00:11.3]} 37. Kxb3 {[%clk
0:00:42.6]} 37... Kxd5 {[%clk 0:00:11.6]} 38. Re1 {[%clk 0:00:39.5]} 38... e4
{[%clk 0:00:11.7]} 39. Rd1+ {[%clk 0:00:37.5]} 39... Ke5 {[%clk 0:00:11.6]} 40.
Kc4 {[%clk 0:00:37.4]} 40... Bf2 {[%clk 0:00:06.8]} 41. b4 {[%clk 0:00:30.3]}
41... Rc8+ {[%clk 0:00:06.6]} 42. Kb3 {[%clk 0:00:30.5]} 42... Kxf5 {[%clk
0:00:06.8]} 43. Be2 {[%clk 0:00:30.2]} 43... Kf4 {[%clk 0:00:06.4]} 44. b5
{[%clk 0:00:30.3]} 44... f5 {[%clk 0:00:06.3]} 45. b6 {[%clk 0:00:30.1]} 45...
Ke3 {[%clk 0:00:06]} 46. Ba6 {[%clk 0:00:29.4]} 46... Rb8 {[%clk 0:00:05.3]} 47.
Rd7 {[%clk 0:00:27.1]} 47... f4 {[%clk 0:00:05.2]} 48. Rxf7 {[%clk 0:00:26.6]}
48... f3 {[%clk 0:00:04.9]} 49. Bb7 {[%clk 0:00:19.9]} 49... Kd2 {[%clk
0:00:01.8]} 50. Bxe4 {[%clk 0:00:19.1]} 1-0

[Event "Early-Titled-Tuesday-Blitz-April-23-2024"]
[Site "Chess.com"]
[Date "2024.04.23"]
[Round "2"]
[White "viktorskliarov"]
[Black "ChEsper99"]
[Result "1-0"]
[WhiteElo "2606"]
[BlackElo "2245"]
[TimeControl "180+1"]
[EndTime "8:18:19 PDT"]
[Termination "viktorskliarov won on time"]

1. e4 {[%clk 0:03:00.9]} 1... c5 {[%clk 0:02:59.5]} 2. Nf3 {[%clk 0:03:01.2]}
2... d6 {[%clk 0:03:00.1]} 3. d4 {[%clk 0:03:01.2]} 3... cxd4 {[%clk 0:03:01]}
4. Qxd4 {[%clk 0:03:01.7]} 4... Nc6 {[%clk 0:02:50.2]} 5. Bb5 {[%clk 0:03:01.2]}
5... Bd7 {[%clk 0:02:47.2]} 6. Bxc6 {[%clk 0:03:01.6]} 6... Bxc6 {[%clk
0:02:44]} 7. Nc3 {[%clk 0:03:01.4]} 7... Nf6 {[%clk 0:02:32]} 8. Bg5 {[%clk
0:03:01.1]} 8... e6 {[%clk 0:02:30.7]} 9. O-O-O {[%clk 0:03:00.6]} 9... Be7
{[%clk 0:02:07.9]} 10. Rhe1 {[%clk 0:02:59.1]} 10... h6 {[%clk 0:02:05.4]} 11.
Bh4 {[%clk 0:02:58.6]} 11... Qa5 {[%clk 0:01:57.9]} 12. Kb1 {[%clk 0:02:57.5]}
12... Rd8 {[%clk 0:01:54.3]} 13. h3 {[%clk 0:02:33.7]} 13... Qc5 {[%clk
0:01:54]} 14. Qd3 {[%clk 0:02:13.5]} 14... b5 {[%clk 0:01:46]} 15. Nd4 {[%clk
0:02:10.3]} 15... a6 {[%clk 0:01:35]} 16. Nxc6 {[%clk 0:02:01.8]} 16... Qxc6
{[%clk 0:01:35.3]} 17. Bxf6 {[%clk 0:02:02.4]} 17... Bxf6 {[%clk 0:01:35]} 18.
Nd5 {[%clk 0:02:02.8]} 18... Be7 {[%clk 0:01:19.3]} 19. Qg3 {[%clk 0:01:50.8]}
19... Bf6 {[%clk 0:00:39.5]} 20. e5 {[%clk 0:01:13.2]} 20... Bxe5 {[%clk
0:00:25.9]} 21. f4 {[%clk 0:01:00.5]} 21... exd5 {[%clk 0:00:26.2]} 22. fxe5
{[%clk 0:00:58.7]} 22... O-O {[%clk 0:00:26.8]} 23. e6 {[%clk 0:00:50.8]} 23...
fxe6 {[%clk 0:00:23.8]} 24. Rxe6 {[%clk 0:00:51.7]} 24... Rfe8 {[%clk
0:00:15.5]} 25. Rxh6 {[%clk 0:00:47.6]} 25... Re2 {[%clk 0:00:14.3]} 26. Rc1
{[%clk 0:00:41.9]} 26... Rc8 {[%clk 0:00:12.7]} 27. Rxd6 {[%clk 0:00:37.1]}
27... Qc7 {[%clk 0:00:05.1]} 28. Rg6 {[%clk 0:00:33.5]} 28... Rxc2 {[%clk
0:00:04.7]} 29. Rxg7+ {[%clk 0:00:28.1]} 29... Qxg7 {[%clk 0:00:03.4]} 30. Qxg7+
{[%clk 0:00:28.1]} 30... Kxg7 {[%clk 0:00:03.8]} 31. Rxc2 {[%clk 0:00:29]} 31...
Re8 {[%clk 0:00:04.1]} 32. Rd2 {[%clk 0:00:27.6]} 32... Re5 {[%clk 0:00:03.5]}
33. Kc2 {[%clk 0:00:27.7]} 33... Kf6 {[%clk 0:00:03.8]} 34. Kd3 {[%clk
0:00:28.2]} 34... Ke6 {[%clk 0:00:04.4]} 35. b3 {[%clk 0:00:27.1]} 35... a5
{[%clk 0:00:03.2]} 36. g4 {[%clk 0:00:27.1]} 36... Re4 {[%clk 0:00:03.3]} 37.
Rg2 {[%clk 0:00:27.1]} 37... Kf6 {[%clk 0:00:02.9]} 38. h4 {[%clk 0:00:26.4]}
38... Kg6 {[%clk 0:00:03.2]} 39. Rg1 {[%clk 0:00:19.4]} 39... a4 {[%clk
0:00:03]} 40. bxa4 {[%clk 0:00:18.5]} 40... bxa4 {[%clk 0:00:03.6]} 41. a3
{[%clk 0:00:19]} 41... Kf6 {[%clk 0:00:03]} 42. g5+ {[%clk 0:00:17.8]} 42... Kg6
{[%clk 0:00:03.5]} 43. h5+ {[%clk 0:00:12.1]} 43... Kxh5 {[%clk 0:00:03.9]} 44.
g6 {[%clk 0:00:12.6]} 44... Re8 {[%clk 0:00:04.2]} 45. g7 {[%clk 0:00:12.3]}
45... Rg8 {[%clk 0:00:04.4]} 46. Kd4 {[%clk 0:00:12.7]} 46... Kh6 {[%clk
0:00:03.6]} 47. Kxd5 {[%clk 0:00:13.2]} 47... Kh7 {[%clk 0:00:01.4]} 48. Kc6
{[%clk 0:00:10.8]} 1-0

[Event "Early-Titled-Tuesday-Blitz-April-23-2024"]
[Site "Chess.com"]
[Date "2024.04.23"]
[Round "2"]
[White "samidescalona2002"]
[Black "DvaHrasta"]
[Result "1-0"]
[WhiteElo "2746"]
[BlackElo "2415"]
[TimeControl "180+1"]
[EndTime "8:18:19 PDT"]
[Termination "samidescalona2002 won on time"]

1. d4 {[%clk 0:02:30.9]} 1... Nf6 {[%clk 0:02:58.7]} 2. c4 {[%clk 0:02:09.2]}
2... e6 {[%clk 0:02:58.5]} 3. Nf3 {[%clk 0:02:02.6]} 3... Bb4+ {[%clk
0:02:57.2]} 4. Bd2 {[%clk 0:02:00.3]} 4... Be7 {[%clk 0:02:56.8]} 5. g3 {[%clk
0:01:59.7]} 5... O-O {[%clk 0:02:54.7]} 6. Bg2 {[%clk 0:01:59.8]} 6... d5 {[%clk
0:02:55]} 7. O-O {[%clk 0:01:59.5]} 7... c6 {[%clk 0:02:54.8]} 8. Qc2 {[%clk
0:01:58.9]} 8... b5 {[%clk 0:02:54.1]} 9. c5 {[%clk 0:01:58]} 9... a5 {[%clk
0:02:53.3]} 10. Bf4 {[%clk 0:01:52.8]} 10... Nfd7 {[%clk 0:02:52.1]} 11. e4
{[%clk 0:01:50.5]} 11... dxe4 {[%clk 0:02:44.5]} 12. Qxe4 {[%clk 0:01:50.5]}
12... Nf6 {[%clk 0:02:41.9]} 13. Qe2 {[%clk 0:01:49.7]} 13... Nd5 {[%clk
0:02:41.6]} 14. Bc1 {[%clk 0:01:41.7]} 14... b4 {[%clk 0:02:41.7]} 15. Re1
{[%clk 0:01:38.8]} 15... Ba6 {[%clk 0:02:39.4]} 16. Qc2 {[%clk 0:01:38.9]} 16...
Nd7 {[%clk 0:02:38.9]} 17. Nbd2 {[%clk 0:01:38.8]} 17... Bf6 {[%clk 0:02:34.4]}
18. Ne4 {[%clk 0:01:38.4]} 18... e5 {[%clk 0:02:23.2]} 19. Nxf6+ {[%clk
0:01:26.4]} 19... Qxf6 {[%clk 0:02:16.7]} 20. Nxe5 {[%clk 0:01:20.7]} 20... Nxe5
{[%clk 0:02:15.1]} 21. Rxe5 {[%clk 0:01:04.5]} 21... Rfe8 {[%clk 0:02:11.6]} 22.
Bg5 {[%clk 0:00:54.3]} 22... Qg6 {[%clk 0:02:07.5]} 23. Be4 {[%clk 0:00:41.1]}
23... Qh5 {[%clk 0:02:01.5]} 24. Be7 {[%clk 0:00:37.9]} 24... Qxe5 {[%clk
0:01:49.6]} 25. dxe5 {[%clk 0:00:31.8]} 25... Rxe7 {[%clk 0:01:49.7]} 26. f4
{[%clk 0:00:26.1]} 26... g6 {[%clk 0:01:41]} 27. Re1 {[%clk 0:00:22]} 27... Rd8
{[%clk 0:01:35.6]} 28. Qa4 {[%clk 0:00:20]} 28... Bb5 {[%clk 0:01:28.5]} 29.
Qxa5 {[%clk 0:00:20.1]} 29... Red7 {[%clk 0:01:23.3]} 30. f5 {[%clk 0:00:16.3]}
30... Ne7 {[%clk 0:01:15.5]} 31. f6 {[%clk 0:00:10.6]} 31... Nd5 {[%clk
0:01:11.7]} 32. Bf3 {[%clk 0:00:09.2]} 32... Nc7 {[%clk 0:01:03.5]} 33. Qb6
{[%clk 0:00:09]} 33... Nd5 {[%clk 0:00:59]} 34. Qa5 {[%clk 0:00:07.9]} 34... Nc7
{[%clk 0:00:59]} 35. Bg4 {[%clk 0:00:07.6]} 35... Ne6 {[%clk 0:00:58.8]} 36.
Bxe6 {[%clk 0:00:07.5]} 36... fxe6 {[%clk 0:00:59.7]} 37. Qxb4 {[%clk
0:00:07.6]} 37... Kf7 {[%clk 0:00:59.4]} 38. Qf4 {[%clk 0:00:07.8]} 38... Rg8
{[%clk 0:00:52.7]} 39. a4 {[%clk 0:00:08.2]} 39... Bd3 {[%clk 0:00:50.7]} 40.
Qh6 {[%clk 0:00:08.2]} 40... Ke8 {[%clk 0:00:49.8]} 41. Rd1 {[%clk 0:00:07.9]}
41... g5 {[%clk 0:00:43]} 42. Qh5+ {[%clk 0:00:07.4]} 42... Bg6 {[%clk
0:00:42.4]} 43. Qe2 {[%clk 0:00:07.6]} 43... Rd5 {[%clk 0:00:40]} 44. Rxd5
{[%clk 0:00:07.7]} 44... cxd5 {[%clk 0:00:38]} 45. Qb5+ {[%clk 0:00:08.3]} 45...
Kf8 {[%clk 0:00:33.7]} 46. Qb8+ {[%clk 0:00:07.8]} 46... Be8 {[%clk 0:00:32.7]}
47. Qc7 {[%clk 0:00:07.8]} 1-0

[Event "Early-Titled-Tuesday-Blitz-April-23-2024"]
[Site "Chess.com"]
[Date "2024.04.23"]
[Round "2"]
[White "ninguno46"]
[Black "Sofia_Blokhin"]
[Result "1-0"]
[WhiteElo "2520"]
[BlackElo "2249"]
[TimeControl "180+1"]
[EndTime "8:18:19 PDT"]
[Termination "ninguno46 won by checkmate"]

1. e4 {[%clk 0:03:00.9]} 1... c5 {[%clk 0:02:59.4]} 2. Nc3 {[%clk 0:03:00.3]}
2... e6 {[%clk 0:02:58.3]} 3. Nge2 {[%clk 0:02:59.9]} 3... a6 {[%clk 0:02:57.6]}
4. g3 {[%clk 0:02:59.8]} 4... Nc6 {[%clk 0:02:56.3]} 5. Bg2 {[%clk 0:02:59.9]}
5... g6 {[%clk 0:02:56.7]} 6. d4 {[%clk 0:02:58.6]} 6... d6 {[%clk 0:02:46.5]}
7. dxc5 {[%clk 0:02:50.3]} 7... dxc5 {[%clk 0:02:46.6]} 8. Qxd8+ {[%clk
0:02:50.3]} 8... Kxd8 {[%clk 0:02:45.3]} 9. Bg5+ {[%clk 0:02:49.6]} 9... f6
{[%clk 0:02:42.4]} 10. O-O-O+ {[%clk 0:02:49.3]} 10... Ke8 {[%clk 0:02:39.4]}
11. Be3 {[%clk 0:02:47.3]} 11... Nh6 {[%clk 0:02:28]} 12. h3 {[%clk 0:02:40.9]}
12... Nf7 {[%clk 0:02:26.7]} 13. Na4 {[%clk 0:02:36.7]} 13... e5 {[%clk
0:01:56]} 14. Nxc5 {[%clk 0:02:29.1]} 14... b5 {[%clk 0:01:45.8]} 15. Nb3 {[%clk
0:02:06]} 15... Be6 {[%clk 0:01:41.6]} 16. Nc3 {[%clk 0:02:03.7]} 16... Nd6
{[%clk 0:01:28.5]} 17. Nc5 {[%clk 0:01:27.1]} 17... Bf7 {[%clk 0:01:18.8]} 18.
b3 {[%clk 0:01:25.7]} 18... a5 {[%clk 0:00:57.7]} 19. Bf1 {[%clk 0:01:11.4]}
19... a4 {[%clk 0:00:43.7]} 20. Nxb5 {[%clk 0:00:52.6]} 20... axb3 {[%clk
0:00:28]} 21. Nc7+ {[%clk 0:00:51.2]} 21... Ke7 {[%clk 0:00:25.5]} 22. Nxa8
{[%clk 0:00:50.3]} 22... bxa2 {[%clk 0:00:21.2]} 23. Kb2 {[%clk 0:00:49.1]}
23... Bg7 {[%clk 0:00:15.5]} 24. Nc7 {[%clk 0:00:38.3]} 24... Rb8+ {[%clk
0:00:15.2]} 25. Nb3 {[%clk 0:00:37.9]} 25... Nb4 {[%clk 0:00:12.3]} 26. Nd5+
{[%clk 0:00:19.1]} 26... Bxd5 {[%clk 0:00:10.6]} 27. Rxd5 {[%clk 0:00:16]} 27...
Nxd5 {[%clk 0:00:09.7]} 28. exd5 {[%clk 0:00:14.5]} 28... Ra8 {[%clk 0:00:10.2]}
29. Be2 {[%clk 0:00:12.3]} 29... f5 {[%clk 0:00:10.5]} 30. c3 {[%clk 0:00:10.7]}
30... e4 {[%clk 0:00:10.4]} 31. Ra1 {[%clk 0:00:09.4]} 31... h6 {[%clk
0:00:09.2]} 32. Kc2 {[%clk 0:00:09.3]} 32... g5 {[%clk 0:00:09]} 33. Bd4 {[%clk
0:00:09.3]} 33... Bxd4 {[%clk 0:00:07.8]} 34. Nxd4 {[%clk 0:00:09.7]} 34... f4
{[%clk 0:00:07.8]} 35. Nc6+ {[%clk 0:00:08.2]} 35... Kf6 {[%clk 0:00:07.1]} 36.
Nb4 {[%clk 0:00:08.2]} 36... e3 {[%clk 0:00:05.4]} 37. fxe3 {[%clk 0:00:07.5]}
37... fxg3 {[%clk 0:00:05.6]} 38. Bf3 {[%clk 0:00:05.6]} 38... Nf5 {[%clk
0:00:05.3]} 39. Kd3 {[%clk 0:00:05.2]} 39... Nh4 {[%clk 0:00:03]} 40. Ke2 {[%clk
0:00:05]} 40... Nf5 {[%clk 0:00:02.7]} 41. Rxa2 {[%clk 0:00:04.8]} 41... h5
{[%clk 0:00:03.2]} 42. Rxa8 {[%clk 0:00:04.2]} 42... Ke5 {[%clk 0:00:02.5]} 43.
Ra6 {[%clk 0:00:04.1]} 43... g4 {[%clk 0:00:01.7]} 44. Re6# {[%clk 0:00:04]} 1-0

[Event "Early-Titled-Tuesday-Blitz-April-23-2024"]
[Site "Chess.com"]
[Date "2024.04.23"]
[Round "2"]
[White "Nikolakis2014"]
[Black "Kimkibo"]
[Result "1/2-1/2"]
[WhiteElo "2727"]
[BlackElo "2414"]
[TimeControl "180+1"]
[EndTime "8:18:20 PDT"]
[Termination "Game drawn by repetition"]

1. Nf3 {[%clk 0:03:00.9]} 1... Nf6 {[%clk 0:02:57]} 2. c4 {[%clk 0:03:00.7]}
2... e6 {[%clk 0:02:54.9]} 3. g3 {[%clk 0:03:00.2]} 3... d5 {[%clk 0:02:54.6]}
4. d4 {[%clk 0:02:59.6]} 4... Bb4+ {[%clk 0:02:52.5]} 5. Bd2 {[%clk 0:02:57.7]}
5... Bxd2+ {[%clk 0:02:48.3]} 6. Qxd2 {[%clk 0:02:56.3]} 6... O-O {[%clk
0:02:46.8]} 7. Bg2 {[%clk 0:02:56.5]} 7... dxc4 {[%clk 0:02:46.4]} 8. O-O {[%clk
0:02:55.3]} 8... Nc6 {[%clk 0:02:45.7]} 9. Rd1 {[%clk 0:02:50.2]} 9... a6 {[%clk
0:02:33.8]} 10. Ne5 {[%clk 0:02:37.1]} 10... Nxe5 {[%clk 0:02:07.9]} 11. dxe5
{[%clk 0:02:36.3]} 11... Qxd2 {[%clk 0:02:08.7]} 12. Nxd2 {[%clk 0:02:36]} 12...
Nd5 {[%clk 0:02:00.1]} 13. Nxc4 {[%clk 0:02:35]} 13... b5 {[%clk 0:02:00.1]} 14.
Na5 {[%clk 0:02:26.5]} 14... c5 {[%clk 0:01:56.2]} 15. Rac1 {[%clk 0:02:13.4]}
15... c4 {[%clk 0:01:53.5]} 16. b3 {[%clk 0:02:09.8]} 16... cxb3 {[%clk
0:01:41.8]} 17. axb3 {[%clk 0:02:09.5]} 17... Ra7 {[%clk 0:01:41.8]} 18. Nc6
{[%clk 0:01:57.5]} 18... Rc7 {[%clk 0:01:35.1]} 19. e4 {[%clk 0:01:29.8]} 19...
Nb6 {[%clk 0:01:26.6]} 20. f4 {[%clk 0:01:27.8]} 20... g6 {[%clk 0:01:16]} 21.
Kf2 {[%clk 0:01:23.6]} 21... Bb7 {[%clk 0:01:15.4]} 22. Na5 {[%clk 0:01:15.6]}
22... Rfc8 {[%clk 0:01:10.4]} 23. Rxc7 {[%clk 0:01:10.7]} 23... Rxc7 {[%clk
0:01:10.4]} 24. Ke3 {[%clk 0:01:05.2]} 24... Bc8 {[%clk 0:00:56.2]} 25. Rd6
{[%clk 0:00:46.2]} 25... Nd7 {[%clk 0:00:48.7]} 26. Rc6 {[%clk 0:00:39.4]} 26...
Rxc6 {[%clk 0:00:43.9]} 27. Nxc6 {[%clk 0:00:40]} 27... Bb7 {[%clk 0:00:40.3]}
28. Na5 {[%clk 0:00:39.5]} 28... Ba8 {[%clk 0:00:38.3]} 29. Kd4 {[%clk
0:00:39.8]} 29... Kf8 {[%clk 0:00:37.7]} 30. Bf1 {[%clk 0:00:38.3]} 30... Ke7
{[%clk 0:00:36]} 31. h4 {[%clk 0:00:38.5]} 31... Kd8 {[%clk 0:00:33.5]} 32. g4
{[%clk 0:00:37.1]} 32... Kc7 {[%clk 0:00:30.8]} 33. g5 {[%clk 0:00:37.4]} 33...
Kb6 {[%clk 0:00:24.6]} 34. b4 {[%clk 0:00:36.5]} 34... Nb8 {[%clk 0:00:19.5]}
35. Bh3 {[%clk 0:00:33.4]} 35... Nc6+ {[%clk 0:00:16.5]} 36. Nxc6 {[%clk
0:00:33.4]} 36... Bxc6 {[%clk 0:00:17.4]} 37. f5 {[%clk 0:00:33.8]} 37... Bd7
{[%clk 0:00:15]} 38. f6 {[%clk 0:00:33.5]} 38... a5 {[%clk 0:00:14.2]} 39. bxa5+
{[%clk 0:00:33]} 39... Kxa5 {[%clk 0:00:15]} 40. Bf1 {[%clk 0:00:33.3]} 40...
Kb6 {[%clk 0:00:14.8]} 41. Bd3 {[%clk 0:00:32.7]} 41... Bc6 {[%clk 0:00:14.9]}
42. Be2 {[%clk 0:00:32.9]} 42... Bb7 {[%clk 0:00:15.5]} 43. h5 {[%clk
0:00:32.9]} 43... Bc6 {[%clk 0:00:16.4]} 44. h6 {[%clk 0:00:25.1]} 44... Bb7
{[%clk 0:00:15.9]} 45. Bd3 {[%clk 0:00:25.5]} 45... Bc6 {[%clk 0:00:16.1]} 46.
Bc2 {[%clk 0:00:25.9]} 46... Bb7 {[%clk 0:00:16.1]} 47. Bb3 {[%clk 0:00:26.2]}
47... Bc8 {[%clk 0:00:16.7]} 48. Ba2 {[%clk 0:00:25.6]} 48... Bd7 {[%clk
0:00:17.2]} 49. Bb3 {[%clk 0:00:25.5]} 49... Bc8 {[%clk 0:00:17]} 50. Bc2 {[%clk
0:00:25.6]} 50... Bd7 {[%clk 0:00:17.3]} 51. Bb3 {[%clk 0:00:25.9]} 51... Kc6
{[%clk 0:00:17]} 52. Bc2 {[%clk 0:00:23.4]} 52... Kb6 {[%clk 0:00:17.3]} 53. Bb3
{[%clk 0:00:21.9]} 1/2-1/2

[Event "Early-Titled-Tuesday-Blitz-April-23-2024"]
[Site "Chess.com"]
[Date "2024.04.23"]
[Round "2"]
[White "Bogdan_Bodnar"]
[Black "mokerslag"]
[Result "0-1"]
[WhiteElo "2228"]
[BlackElo "2505"]
[TimeControl "180+1"]
[EndTime "8:18:20 PDT"]
[Termination "mokerslag won by resignation"]

1. c4 {[%clk 0:03:00.9]} 1... Nf6 {[%clk 0:03:00]} 2. Nc3 {[%clk 0:03:00.6]}
2... e6 {[%clk 0:02:59.8]} 3. e4 {[%clk 0:02:59.4]} 3... d5 {[%clk 0:02:59.6]}
4. e5 {[%clk 0:02:59.9]} 4... d4 {[%clk 0:03:00]} 5. exf6 {[%clk 0:02:59.5]}
5... dxc3 {[%clk 0:03:00.4]} 6. fxg7 {[%clk 0:02:56.8]} 6... cxd2+ {[%clk
0:02:57.6]} 7. Qxd2 {[%clk 0:02:55.1]} 7... Qxd2+ {[%clk 0:02:57.4]} 8. Bxd2
{[%clk 0:02:56]} 8... Bxg7 {[%clk 0:02:58.1]} 9. O-O-O {[%clk 0:02:54.8]} 9...
Nc6 {[%clk 0:02:56.1]} 10. Nf3 {[%clk 0:02:50.7]} 10... e5 {[%clk 0:02:54.5]}
11. Bd3 {[%clk 0:02:45.3]} 11... Bg4 {[%clk 0:02:53.4]} 12. Be4 {[%clk
0:02:40.6]} 12... O-O-O {[%clk 0:02:49]} 13. h3 {[%clk 0:02:30.9]} 13... Bxf3
{[%clk 0:02:45]} 14. Bxf3 {[%clk 0:02:29]} 14... Nd4 {[%clk 0:02:45.3]} 15. Bh5
{[%clk 0:02:15]} 15... f5 {[%clk 0:02:39.1]} 16. Rhe1 {[%clk 0:02:12.9]} 16...
c5 {[%clk 0:02:37.4]} 17. Bf7 {[%clk 0:01:51.7]} 17... Rhf8 {[%clk 0:02:27.9]}
18. Bd5 {[%clk 0:01:50.7]} 18... b5 {[%clk 0:02:28.6]} 19. Bg5 {[%clk
0:01:44.9]} 19... Rd7 {[%clk 0:02:08.6]} 20. f3 {[%clk 0:00:57.2]} 20... Kc7
{[%clk 0:01:56.3]} 21. Be3 {[%clk 0:00:37.7]} 21... Bf6 {[%clk 0:01:50.7]} 22.
Bxd4 {[%clk 0:00:37.5]} 22... cxd4 {[%clk 0:01:49.3]} 23. b3 {[%clk 0:00:34.3]}
23... Kd6 {[%clk 0:01:28.9]} 24. Kc2 {[%clk 0:00:33.9]} 24... Rg7 {[%clk
0:01:22.8]} 25. Re2 {[%clk 0:00:33.2]} 25... Rc8 {[%clk 0:01:19.3]} 26. Kd3
{[%clk 0:00:28.6]} 26... b4 {[%clk 0:01:17.6]} 27. g4 {[%clk 0:00:21.2]} 27...
fxg4 {[%clk 0:01:14.3]} 28. fxg4 {[%clk 0:00:20.8]} 28... Bg5 {[%clk 0:01:14.5]}
29. Ke4 {[%clk 0:00:19.1]} 29... Rf8 {[%clk 0:01:11.9]} 30. Rh1 {[%clk
0:00:13.8]} 30... Rg6 {[%clk 0:01:08.4]} 31. Kd3 {[%clk 0:00:14]} 31... Rgf6
{[%clk 0:01:02]} 32. Be4 {[%clk 0:00:14]} 32... h6 {[%clk 0:00:57.3]} 33. Bf5
{[%clk 0:00:14]} 33... Rxf5 {[%clk 0:00:51.6]} 34. gxf5 {[%clk 0:00:12.6]} 34...
Rxf5 {[%clk 0:00:52.5]} 35. Re4 {[%clk 0:00:11.6]} 35... Rf2 {[%clk 0:00:49.7]}
36. Re2 {[%clk 0:00:07.5]} 36... Rf3+ {[%clk 0:00:42]} 37. Ke4 {[%clk
0:00:07.9]} 37... Rf4+ {[%clk 0:00:40.5]} 38. Kd3 {[%clk 0:00:07.7]} 38... Ke6
{[%clk 0:00:37.8]} 39. h4 {[%clk 0:00:07.9]} 39... Rf3+ {[%clk 0:00:35.1]} 40.
Ke4 {[%clk 0:00:06.2]} 40... Rf4+ {[%clk 0:00:35.3]} 41. Kd3 {[%clk 0:00:06.7]}
41... Bxh4 {[%clk 0:00:34.1]} 42. Reh2 {[%clk 0:00:06.4]} 42... Bg5 {[%clk
0:00:26]} 43. Ke2 {[%clk 0:00:05.6]} 43... e4 {[%clk 0:00:25.5]} 44. Rf2 {[%clk
0:00:05.4]} 44... d3+ {[%clk 0:00:23.2]} 45. Ke1 {[%clk 0:00:06]} 45... Bh4
{[%clk 0:00:21.9]} 46. Rxh4 {[%clk 0:00:04.7]} 46... Rxh4 {[%clk 0:00:21.9]} 47.
Kd2 {[%clk 0:00:05.3]} 47... Ke5 {[%clk 0:00:17.5]} 48. Rg2 {[%clk 0:00:04.4]}
48... Kd4 {[%clk 0:00:17.3]} 49. Rg8 {[%clk 0:00:03.9]} 49... e3+ {[%clk
0:00:17.5]} 0-1